bitfinex-derivatives/quotes_ETHF0:USTF0_20250606
["timestamp","ask_amount","ask_price","bid_price","bid_amount"]
[1749170001337,4.8627,2418.3,2417.7,3.2078]
[1749170001530,0.82678,2417.9,2417.7,3.2078]
[1749170001732,0.82678,2417.9,2417.7,4.9856]
[1749170001936,0.82676,2418.0,2417.7,4.9856]
[1749170002149,4.8627,2418.3,2417.8,1.7778]
[1749170002445,0.82677,2417.9,2417.8,1.7778]
[1749170002745,4.8627,2418.3,2417.5,2.62169]
[1749170002746,0.82681,2417.8,2417.5,2.62169]
[1749170002949,0.82681,2417.8,2417.6,1.7603]
[1749170003240,0.82681,2417.8,2416.6,0.0062171]
[1749170003241,2.06724,2417.6,2416.6,0.0062171]
[1749170003442,3.2078,2416.7,2415.4,2.06906]
[1749170003646,3.2078,2416.7,2415.6,3.2078]
[1749170003647,0.82727,2416.5,2415.6,3.2078]
[1749170003847,3.2078,2416.7,2415.7,1.7603]
[1749170004250,3.2078,2416.7,2415.8,3.4368]
[1749170004449,0.83344168,2416.5,2416.1,0.82736]
[1749170004742,0.00617168,2416.5,2416.2,1.7603]
[1749170004943,0.00617168,2416.5,2416.2,8.3303]
[1749170005244,0.00617168,2416.5,2416.3,2.58759]
[1749170005443,0.00617168,2416.5,2416.3,1.7603]
[1749170005844,0.00617168,2416.5,2416.4,0.82728]
[1749170006052,0.00617168,2416.5,2416.4,2.56408]
[1749170006249,0.00617168,2416.5,2416.4,4.21148]
[1749170006550,0.00617168,2416.5,2416.4,3.3842]
[1749170006749,0.00617168,2416.5,2416.4,4.21148]
[1749170007949,0.00617168,2416.5,2416.4,9.21148]
[1749170009652,3.2078,2418.4,2416.6,5.27585]
[1749170009852,0.82666,2418.3,2417.9,0.82676]
[1749170010056,3.2078,2418.4,2417.9,0.82676]
[1749170010057,0.82671,2418.1,2417.9,6.57]
[1749170010346,3.2078,2418.4,2417.9,6.57]
[1749170010651,3.2078,2418.4,2417.9,1.64600347]
[1749170010652,0.82674,2418.0,2417.9,1.64600347]
[1749170010855,0.82672,2418.1,2417.9,1.64600347]
[1749170011247,2.89442,2418.1,2417.9,1.64600347]
[1749170011746,0.82674,2418.0,2417.9,0.00620347]
[1749170011947,2.0677,2418.1,2417.9,0.00620347]
[1749170011948,2.89442,2418.1,2417.9,0.00620347]
[1749170012257,0.82674,2418.0,2417.9,0.00620347]
[1749170013144,2.0677,2418.1,2417.9,0.00620347]
[1749170013356,2.0677,2418.1,2418.0,0.82674]
[1749170013554,2.0677,2418.1,2417.9,2.49595347]
[1749170014054,2.0677,2418.1,2417.9,1.66920347]
[1749170014355,2.0677,2418.1,2418.0,0.82674]
[1749170014546,2.0677,2418.1,2417.9,1.66920347]
[1749170014749,0.82674,2418.0,2417.9,0.00620347]
[1749170015153,2.13903351,2418.1,2417.9,0.00620347]
[1749170015549,0.82674,2418.0,2417.9,0.00620347]
[1749170017047,0.82674,2418.0,2417.6,6.567]
[1749170017048,0.82694,2417.4,2417.3,1.7583]
[1749170017248,0.82685,2417.7,2417.4,0.82694]
[1749170017554,0.82682,2417.8,2417.5,0.82691]
[1749170017749,4.03459,2417.9,2417.6,0.82687]
[1749170018055,3.2078,2417.9,2417.5,9.02739347]
[1749170018259,3.2078,2417.9,2417.5,0.00620347]
[1749170018260,0.82687,2417.6,2417.5,0.00620347]
[1749170019052,4.03467,2417.6,2417.5,0.00620347]
[1749170019958,0.82687,2417.6,2417.5,0.00620347]
[1749170020556,4.6854,2417.8,2417.5,0.00620347]
[1749170020760,2.8951,2417.8,2417.5,0.00620347]
[1749170020956,0.82687,2417.7,2417.5,0.00620347]
[1749170021160,2.8951,2417.8,2417.5,0.83311347]
[1749170021358,2.8951,2417.8,2417.5,0.00620347]
[1749170021558,0.82687,2417.6,2417.5,0.00620347]
[1749170021759,2.8951,2417.8,2417.5,0.00620347]
[1749170021760,0.82685,2417.7,2417.5,0.00620347]
[1749170022064,0.82687,2417.6,2417.5,0.00620347]
[1749170023262,3.72192,2417.8,2417.5,0.83309347]
[1749170023464,2.8951,2417.8,2417.5,1.81110347]
[1749170023765,2.8951,2417.8,2417.6,0.82685]
[1749170024059,3.72191,2417.8,2417.6,1.7544]
[1749170024263,3.72191,2417.8,2417.6,5.78906]
[1749170024264,2.8951,2417.8,2417.6,5.78906]
[1749170024568,2.8951,2417.8,2417.6,2.58126]
[1749170024765,2.8951,2417.8,2417.7,0.82684]
[1749170024958,2.8951,2417.8,2417.7,2.46034]
[1749170025153,2.8951,2417.8,2417.6,1.7544]
[1749170025359,3.72192,2417.8,2417.7,6.537]
[1749170025555,2.8951,2417.8,2417.6,2.58127]
[1749170025761,2.8951,2417.8,2417.7,7.36284]
[1749170025962,2.8951,2417.8,2417.7,8.99634]
[1749170026364,3.7219,2417.8,2417.7,6.536]
[1749170027364,0.82687,2417.6,2417.5,0.00620347]
[1749170027571,4.03467,2417.6,2417.5,0.00620347]
[1749170027962,5.65577,2417.6,2417.5,0.00620347]
[1749170028163,4.8289,2417.6,2417.5,0.00620347]
[1749170028366,4.03467,2417.6,2417.5,0.00620347]
[1749170028768,3.2078,2417.6,2417.5,0.83311347]
[1749170029072,2.8951,2417.8,2417.6,0.82686]
[1749170029266,2.8951,2417.8,2417.5,0.00620347]
[1749170029469,2.8951,2417.8,2417.5,1.54280347]
[1749170029668,2.8951,2417.8,2417.7,0.82684]
[1749170029870,2.8951,2417.8,2417.7,6.537]
[1749170030161,2.8951,2417.8,2417.7,7.36384]
[1749170031473,2.8951,2417.8,2417.5,0.00620347]
[1749170031670,2.8951,2417.8,2417.5,6.54320347]
[1749170031870,4.5097,2417.8,2417.5,6.54320347]
[1749170032071,0.82687,2417.6,2417.5,6.54320347]
[1749170032273,2.068,2417.7,2417.5,7.37009347]
[1749170032573,0.07133351,2417.6,2417.5,1.50860347]
[1749170032872,0.89820351,2417.6,2417.5,0.00620347]
[1749170033776,0.07133351,2417.6,2417.5,0.00620347]
[1749170034169,0.07133351,2417.6,2417.5,0.83311347]
[1749170034370,0.07133351,2417.6,2417.5,1.59660347]
[1749170034571,0.89820351,2417.6,2417.5,0.00620347]
[1749170034770,0.07133351,2417.6,2417.5,0.00620347]
[1749170035074,0.89820351,2417.6,2417.5,0.00620347]
[1749170035277,0.07133351,2417.6,2417.5,0.00620347]
[1749170036177,0.07133351,2417.6,2417.5,0.83311347]
[1749170036378,0.07133351,2417.6,2417.5,0.00620347]
[1749170036771,0.89820351,2417.6,2417.5,0.00620347]
[1749170037172,3.49858524,2417.6,2417.5,0.00620347]
[1749170039077,0.82704,2417.1,2417.0,6.536]
[1749170039474,0.82699,2417.3,2417.0,6.536]
[1749170039776,3.2078,2417.5,2417.2,0.82699]
[1749170040279,3.2078,2417.5,2417.1,0.00620347]
[1749170040477,3.2078,2417.5,2417.2,0.827]
[1749170040678,3.2078,2417.5,2417.3,1.5243]
[1749170040878,0.07133351,2417.6,2417.1,0.00620347]
[1749170040879,0.82701,2417.2,2417.1,0.00620347]
[1749170041280,1.11643661,2417.5,2417.1,0.00620347]
[1749170041484,1.94343046,2417.4,2417.1,0.83321347]
[1749170041677,0.82693,2417.5,2417.2,2.3513]
[1749170041881,0.82693,2417.5,2417.3,2.35128]
[1749170042177,0.07133351,2417.6,2417.3,1.5243]
[1749170042382,0.89823351,2417.6,2417.3,2.35127]
[1749170042584,0.89822351,2417.6,2417.3,2.35127]
[1749170042976,0.07133351,2417.6,2417.5,0.82691]
[1749170043175,0.07133351,2417.6,2417.5,2.38271]
[1749170043984,0.07133351,2417.6,2417.5,5.59051]
[1749170044189,2.068,2417.7,2417.6,0.82687]
[1749170044387,2.8951,2417.8,2417.7,0.82684]
[1749170045284,0.82684,2417.7,2417.6,1.5558]
[1749170045488,2.8951,2417.8,2417.6,2.38265]
[1749170045680,2.8951,2417.8,2417.4,1.6127]
[1749170045681,0.82689,2417.6,2417.4,1.6127]
[1749170045878,2.8951,2417.8,2417.3,31.555]
[1749170045879,0.82694,2417.5,2417.3,31.555]
[1749170046081,4.4706,2417.8,2417.3,31.555]
[1749170046279,4.11291435,2418.7,2417.5,3.2078]
[1749170046584,14.4213,2419.1,2418.2,3.2078]
[1749170046789,14.4213,2419.1,2418.3,1.6263]
[1749170047083,14.4213,2419.1,2418.5,3.2078]
[1749170047084,2.1232,2419.0,2418.5,3.2078]
[1749170047284,2.12940347,2419.0,2418.6,0.82651]
[1749170047484,2.12940347,2419.0,2418.6,2.45281]
[1749170047681,2.48070347,2419.0,2418.6,2.45281]
[1749170047882,2.48070347,2419.0,2418.7,0.82648]
[1749170048082,0.693,2418.9,2418.6,2.45281]
[1749170048281,0.693,2418.9,2418.7,0.82648]
[1749170048482,0.693,2418.9,2418.8,3.2078]
[1749170049887,0.693,2418.9,2418.8,0.82647]
[1749170050096,0.693,2418.9,2418.7,0.82648]
[1749170050389,0.693,2418.9,2418.6,2.45282]
[1749170050887,0.82649,2418.8,2418.5,3.21400347]
[1749170051191,7.202,2418.9,2418.5,3.21400347]
[1749170051488,0.82648,2418.8,2418.5,3.21400347]
[1749170051692,0.693,2418.9,2418.6,1.6356]
[1749170052090,0.693,2418.9,2418.8,4.03427]
[1749170052882,0.693,2418.9,2418.8,3.2078]
[1749170053083,0.693,2418.9,2418.8,4.03427]
[1749170053284,0.693,2418.9,2418.8,5.66987]
[1749170055191,0.693,2418.9,2418.8,4.8434]
[1749170055696,0.693,2418.9,2418.8,5.66987]
[1749170055887,0.693,2418.9,2418.8,4.8434]
[1749170056086,0.693,2418.9,2418.8,5.66987]
[1749170056288,0.693,2418.9,2418.8,3.2078]
[1749170056696,0.693,2418.9,2418.8,5.55127]
[1749170057291,0.693,2418.9,2418.8,7.02827]
[1749170058599,0.693,2418.9,2418.8,18.53627]
[1749170058788,2.48070347,2419.0,2418.9,0.82643]
[1749170058988,2.48070347,2419.0,2418.9,2.24893]
[1749170059197,2.48070347,2419.0,2418.9,7.24893]
[1749170059684,2.12940347,2419.0,2418.9,7.24893]
[1749170059886,0.4628,2419.3,2418.9,6.4225]
[1749170060089,0.4628,2419.3,2419.2,3.2078]
[1749170060288,1.2891,2419.3,2419.2,3.2078]
[1749170060492,1.4553,2419.7,2418.8,4.6848]
[1749170060695,0.82643,2419.0,2418.8,4.6848]
[1749170060893,0.07133351,2418.9,2418.8,4.6848]
[1749170061088,0.89776351,2418.9,2418.8,6.0941]
[1749170061594,0.07133351,2418.9,2418.8,2.8863]
[1749170061992,0.07133351,2418.9,2418.7,1.5514]
[1749170062195,0.82652,2418.7,2418.5,3.21400347]
[1749170062396,0.82649,2418.8,2418.5,5.44987347]
[1749170063097,0.0125,2418.8,2418.5,3.21400347]
[1749170063299,0.82654,2418.6,2418.5,3.21400347]
[1749170063494,0.82654,2418.6,2418.5,0.00620347]
[1749170063891,0.82654,2418.6,2417.4,27.07229]
[1749170063892,11.507,2418.6,2417.4,3.2078]
[1749170064191,0.82704,2417.2,2417.0,3.2078]
[1749170064386,0.82703,2417.2,2417.0,3.2078]
[1749170064587,0.82705,2417.2,2417.0,3.2078]
[1749170064796,0.00620347,2417.3,2417.0,3.2078]
[1749170064996,0.83318347,2417.3,2417.0,3.2078]
[1749170065299,0.00620347,2417.3,2417.0,3.2078]
[1749170065496,0.83321347,2417.3,2417.0,3.2078]
[1749170066197,0.00620347,2417.3,2417.0,3.2078]
[1749170066397,0.82703,2417.2,2417.0,3.2078]
[1749170066600,0.83319347,2417.3,2417.0,3.2078]
[1749170066895,0.00620347,2417.3,2417.0,3.2078]
[1749170067395,0.82705,2417.1,2417.0,3.2078]
[1749170067598,0.82703,2417.2,2417.0,3.2078]
[1749170068501,0.82705,2417.1,2417.0,3.2078]
[1749170068887,0.00620347,2417.3,2417.0,3.2078]
[1749170068888,0.82703,2417.2,2417.0,3.2078]
[1749170069502,0.82703,2417.2,2416.9,0.00620347]
[1749170069503,0.82708,2417.0,2416.9,0.00620347]
[1749170071094,3.2078,2418.4,2416.9,38.59699347]
[1749170071294,0.8268,2417.9,2417.6,3.2078]
[1749170071496,0.82677,2418.0,2417.7,1.4891]
[1749170071995,2.06669,2418.2,2417.6,3.2078]
[1749170072299,0.82689,2417.6,2417.2,2.32881]
[1749170072493,3.2078,2417.8,2417.1,3.2078]
[1749170072697,7.8938,2418.1,2417.1,3.2078]
[1749170072698,6.509,2418.1,2417.3,0.82698]
[1749170072899,1.5138,2418.0,2417.3,0.82695]
[1749170073203,0.82693,2417.5,2417.2,1.4442]
[1749170074206,0.82689,2417.6,2417.2,2.27121]
[1749170074400,0.82686,2417.7,2417.3,2.27118]
[1749170074604,0.82688,2417.6,2417.3,1.4442]
[1749170074809,0.82692,2417.5,2417.3,1.4442]
[1749170074999,0.82692,2417.5,2417.1,4.03483]
[1749170075000,0.82693,2417.5,2417.1,4.03483]
[1749170075201,0.82693,2417.5,2417.2,2.27121]
[1749170075397,0.82689,2417.6,2417.2,2.27119]
[1749170075597,1.5138,2418.0,2417.4,3.2078]
[1749170075598,0.82691,2417.5,2417.4,3.2078]
[1749170075802,0.82701,2417.2,2417.1,3.2078]
[1749170076300,0.82703,2417.2,2416.9,0.83331347]
[1749170076502,3.0324,2417.7,2417.1,3.2078]
[1749170076798,0.82692,2417.5,2417.2,1.3937]
[1749170076999,3.51e-06,2418.0,2417.9,0.82677]
[1749170077301,3.51e-06,2418.0,2417.9,10.54457]
[1749170077804,3.51e-06,2418.0,2417.9,9.7178]
[1749170078004,3.51e-06,2418.0,2417.9,11.93827]
[1749170078405,3.51e-06,2418.0,2417.9,16.93827]
[1749170078705,3.51e-06,2418.0,2417.9,16.90827]
[1749170080609,3.51e-06,2418.0,2417.9,10.42827]
[1749170080804,3.51e-06,2418.0,2417.9,16.90827]
[1749170082705,3.51e-06,2418.0,2417.9,21.04727]
[1749170083811,3.51e-06,2418.0,2417.9,9.56727]
[1749170084010,0.82674351,2418.0,2417.9,3.2078]
[1749170084207,5.00000351,2418.0,2417.5,3.2078]
[1749170084406,3.51e-06,2418.0,2417.5,3.2078]
[1749170084611,3.51e-06,2418.0,2417.9,3.2078]
[1749170084811,3.51e-06,2418.0,2417.9,9.6868]
[1749170085312,3.51e-06,2418.0,2417.9,3.2078]
[1749170085313,0.82674351,2418.0,2417.9,3.2078]
[1749170085701,0.82674351,2418.0,2417.6,7.8992]
[1749170085702,0.82676351,2418.0,2417.6,7.8992]
[1749170085911,0.82676351,2418.0,2417.6,8.72604]
[1749170086112,3.51e-06,2418.0,2417.8,3.2078]
[1749170086509,0.82676351,2418.0,2417.8,3.2078]
[1749170087213,0.82677,2417.9,2417.8,3.2078]
[1749170087513,0.82675351,2418.0,2417.8,3.2078]
[1749170087812,0.82677,2417.9,2417.8,3.2078]
[1749170088906,2.30917,2417.9,2417.8,3.2078]
[1749170089112,5.07847,2417.9,2417.8,3.2078]
[1749170090916,0.4654,2418.3,2417.8,3.2078]
[1749170091114,0.07133351,2417.9,2417.8,4.03459]
[1749170091806,0.07133351,2417.9,2417.8,3.2078]
[1749170092312,0.07133351,2417.9,2417.8,4.03461]
[1749170093313,0.07133351,2417.9,2417.8,5.44751]
[1749170096002,0.07133351,2417.9,2417.8,9.58651]
[1749170096208,3.51e-06,2417.9,2417.8,14.58651]
[1749170097621,3.51e-06,2417.9,2417.8,9.58651]
[1749170097920,3.51e-06,2417.9,2417.8,16.06551]
[1749170099518,3.51e-06,2417.9,2417.8,21.06551]
[1749170100714,3.51e-06,2417.9,2417.8,16.92551]
[1749170101818,0.3526,2418.3,2417.8,16.0987]
[1749170102015,0.3526,2418.3,2418.2,4.03447]
[1749170102223,0.3526,2418.3,2418.2,10.51247]
[1749170102615,0.0125,2418.8,2418.6,0.82653]
[1749170102819,0.0125,2418.8,2418.7,9.6858]
[1749170103529,0.0125,2418.8,2418.7,10.5123]
[1749170103830,0.0125,2418.8,2418.7,3.2078]
[1749170104028,0.0125,2418.8,2418.5,6.48420347]
[1749170104029,0.8265,2418.7,2418.5,6.48420347]
[1749170104328,0.82653,2418.6,2418.5,0.00620347]
[1749170104531,2.21803,2418.6,2418.5,0.00620347]
[1749170104729,3.69003,2418.6,2418.5,0.00620347]
[1749170104926,2.8635,2418.6,2418.5,0.00620347]
[1749170105126,3.69003,2418.6,2418.5,0.00620347]
[1749170105334,0.08383351,2418.8,2418.5,0.00620347]
[1749170105536,0.08383351,2418.8,2418.7,3.2078]
[1749170105827,0.43783351,2418.8,2418.7,4.0343]
[1749170106234,0.42533351,2418.8,2418.7,4.0343]
[1749170107528,3.40090106,2420.0,2418.7,8.2078]
[1749170107729,1.353,2419.6,2419.4,3.2078]
[1749170108036,0.82632,2419.3,2419.2,6.449]
[1749170108624,0.0223,2419.4,2419.2,6.449]
[1749170108831,0.84858,2419.4,2419.2,6.449]
[1749170109231,2.3183,2419.3,2419.2,6.449]
[1749170109431,3.815,2419.3,2419.2,6.449]
[1749170109733,2.9887,2419.3,2419.2,6.449]
[1749170110129,3.815,2419.3,2419.2,6.449]
[1749170110324,2.9887,2419.3,2419.2,6.449]
[1749170111031,3.815,2419.3,2419.2,6.449]
[1749170111337,0.82636,2419.1,2419.0,3.2078]
[1749170112833,0.82636,2419.1,2418.5,1.47420347]
[1749170112834,0.82653,2418.6,2418.5,0.00620347]
[1749170113036,3.2078,2418.9,2418.5,0.00620347]
[1749170113240,3.63048,2418.8,2418.5,0.83275347]
[1749170113436,2.25952351,2418.8,2418.5,0.00620347]
[1749170113737,0.82651,2418.7,2418.5,0.00620347]
[1749170114339,0.82653,2418.6,2418.5,0.00620347]
[1749170114640,2.24032,2418.7,2418.5,0.00620347]
[1749170115030,1.4138,2418.7,2418.5,0.00620347]
[1749170115235,2.2403,2418.7,2418.5,0.00620347]
[1749170115636,2.24031,2418.7,2418.5,0.00620347]
[1749170116142,1.4138,2418.7,2418.5,0.00620347]
[1749170116343,1.4138,2418.7,2418.6,4.03433]
[1749170116639,0.07133351,2418.8,2418.6,4.03433]
[1749170116837,0.07133351,2418.8,2418.6,3.2078]
[1749170117037,0.07133351,2418.8,2418.6,4.03433]
[1749170117932,0.07133351,2418.8,2418.7,0.8265]
[1749170118133,0.07133351,2418.8,2418.7,2.223]
[1749170118739,0.0223,2419.4,2419.3,0.8263]
[1749170119041,0.0223,2419.4,2418.8,2.06616]
[1749170119042,0.0223,2419.4,2419.2,4.03411]
[1749170119243,0.0223,2419.4,2419.2,3.2078]
[1749170119444,0.0223,2419.4,2419.2,4.03411]
[1749170119838,0.84856,2419.4,2419.2,3.2078]
[1749170120139,0.8263,2419.3,2419.2,9.6568]
[1749170120436,0.0223,2419.4,2419.2,9.6568]
[1749170120637,0.84856,2419.4,2419.2,9.6568]
[1749170120837,2.21938,2419.4,2419.2,9.6568]
[1749170121045,0.0223,2419.4,2419.2,9.6568]
[1749170121235,0.0223,2419.4,2419.2,10.48311]
[1749170121635,0.0223,2419.4,2419.2,9.6568]
[1749170121841,0.84859,2419.4,2419.2,9.6568]
[1749170122039,0.84859,2419.4,2419.2,3.2078]
[1749170122040,0.8263,2419.3,2419.2,3.2078]
[1749170122241,0.0223,2419.4,2419.2,3.2078]
[1749170122437,0.8263,2419.3,2419.2,3.2078]
[1749170122840,2.234,2419.3,2419.2,3.2078]
[1749170123040,1.4077,2419.3,2419.2,3.2078]
[1749170123241,0.0223,2419.4,2419.2,4.03413]
[1749170123443,0.0223,2419.4,2419.3,0.8263]
[1749170124047,0.0223,2419.4,2419.2,3.2078]
[1749170124048,0.0223,2419.4,2419.2,4.03411]
[1749170124449,0.0223,2419.4,2419.3,0.82629]
[1749170125155,0.0223,2419.4,2419.3,2.28369]
[1749170126050,0.0223,2419.4,2419.2,3.2078]
[1749170126051,0.0223,2419.4,2419.2,4.03411]
[1749170126249,0.8263,2419.3,2419.2,3.2078]
[1749170126449,0.0223,2419.4,2419.3,0.8263]
[1749170126650,0.0223,2419.4,2419.2,3.2078]
[1749170126651,0.0223,2419.4,2419.2,4.03411]
[1749170126946,0.0223,2419.4,2419.2,3.2078]
[1749170127450,0.84856,2419.4,2419.2,3.2078]
[1749170127651,0.8263,2419.3,2419.2,3.2078]
[1749170128039,0.84858,2419.4,2419.2,3.2078]
[1749170128246,0.0223,2419.4,2419.2,4.03412]
[1749170128543,0.84857,2419.4,2419.2,3.2078]
[1749170128740,0.8263,2419.3,2419.2,3.2078]
[1749170129645,0.8263,2419.3,2418.9,3.2078]
[1749170129646,0.82642,2419.0,2418.9,3.2078]
[1749170130049,3.55945,2419.2,2418.9,3.2078]
[1749170130245,0.82635,2419.2,2418.9,4.03421]
[1749170130450,0.0223,2419.4,2419.0,7.8753]
[1749170130852,0.0223,2419.4,2419.3,0.8263]
[1749170131052,0.0223,2419.4,2419.2,4.03411]
[1749170131450,0.0223,2419.4,2419.3,0.8263]
[1749170131854,0.0223,2419.4,2419.2,3.2078]
[1749170131855,0.0223,2419.4,2419.2,4.03412]
[1749170132052,0.8263,2419.3,2419.2,3.2078]
[1749170132449,7.1478,2419.3,2419.2,3.2078]
[1749170132655,5.8263,2419.3,2419.2,3.2078]
[1749170133155,7.1478,2419.3,2419.2,3.2078]
[1749170133456,2.1478,2419.3,2419.2,3.2078]
[1749170134055,0.8263,2419.3,2419.2,3.2078]
[1749170134762,0.07133351,2419.3,2419.2,3.2078]
[1749170134957,0.89763351,2419.3,2419.2,3.2078]
[1749170135162,0.07133351,2419.3,2419.2,3.2078]
[1749170135362,0.07133351,2419.3,2419.2,4.03413]
[1749170135859,0.07133351,2419.3,2419.2,10.48363]
[1749170136159,0.07133351,2419.3,2419.2,11.94223]
[1749170138260,0.0223,2419.4,2419.3,0.8263]
[1749170138451,0.0223,2419.4,2419.3,3.6076]
[1749170139157,0.0223,2419.4,2419.3,2.7813]
[1749170139460,0.0223,2419.4,2419.3,3.60759]
[1749170140653,0.0223,2419.4,2419.3,8.60759]
[1749170141461,0.19310106,2420.0,2419.9,0.82609]
[1749170141761,1.3646,2420.5,2419.9,9.6198]
[1749170141959,0.826,2420.2,2419.9,9.6198]
[1749170142160,0.82602,2420.1,2420.0,1.3904]
[1749170142361,1.3646,2420.5,2420.0,1.3904]
[1749170142362,0.82601,2420.2,2420.0,1.3904]
[1749170142558,0.82595,2420.4,2420.0,1.3904]
[1749170142759,0.82595,2420.3,2420.2,3.2078]
[1749170143359,0.82594,2420.4,2420.2,3.2078]
[1749170143665,0.82595,2420.3,2420.2,3.2078]
[1749170143865,1.3646,2420.5,2420.2,3.2078]
[1749170144060,1.3646,2420.5,2420.0,1.3904]
[1749170144061,0.82606,2420.0,2419.9,3.2078]
[1749170144370,0.82606,2420.0,2419.9,9.6188]
[1749170144562,0.82606,2420.0,2419.9,3.2078]
[1749170145063,1.3708,2420.5,2419.9,3.2078]
[1749170145262,0.82606,2420.0,2419.9,3.2078]
[1749170145867,0.826,2420.2,2420.0,0.82606]
[1749170146063,1.323,2420.3,2419.9,3.2078]
[1749170146466,1.3708,2420.5,2420.2,0.82597]
[1749170146668,1.3708,2420.5,2420.0,1.3145]
[1749170146868,0.82593,2420.4,2420.2,0.82597]
[1749170147060,1.3708,2420.5,2420.2,3.2078]
[1749170147258,0.82593,2420.4,2420.2,3.2078]
[1749170147666,0.82595,2420.3,2420.2,3.2078]
[1749170148168,0.82593,2420.4,2420.2,3.2078]
[1749170148569,1.3708,2420.5,2420.2,3.2078]
[1749170148775,0.0062,2420.5,2420.2,3.2078]
[1749170149077,0.82592,2420.4,2420.2,3.2078]
[1749170149264,0.0062,2420.5,2420.4,0.82592]
[1749170149671,0.0062,2420.5,2420.4,2.20062]
[1749170149872,0.0062,2420.5,2420.4,1.3747]
[1749170150476,0.83209,2420.5,2420.4,1.3747]
[1749170150877,0.0062,2420.5,2420.3,6.411]
[1749170151276,0.0062,2420.5,2420.3,7.7857]
[1749170151473,3.2078,2421.3,2420.3,12.7857]
[1749170151677,0.82574,2421.0,2420.7,0.82579]
[1749170151974,0.82582,2420.7,2420.6,3.2078]
[1749170152981,0.82592,2420.4,2420.3,6.41]
[1749170153775,1.3906,2420.7,2420.3,6.41]
[1749170153976,0.82591,2420.5,2420.3,6.41]
[1749170154586,0.82592,2420.4,2420.3,6.41]
[1749170155085,0.89731351,2420.3,2420.2,6.41]
[1749170155284,0.82599,2420.2,2420.1,3.2078]
[1749170155580,0.82612,2419.8,2419.7,0.00620347]
[1749170155775,4.03392,2419.8,2419.7,0.00620347]
[1749170155977,9.03392,2419.8,2419.7,0.00620347]
[1749170157487,4.03392,2419.8,2419.7,0.00620347]
[1749170158384,9.03392,2419.8,2419.7,0.00620347]
[1749170159186,10.1608687,2419.8,2419.7,0.00620347]
[1749170159694,9.03392,2419.8,2419.7,0.00620347]
[1749170159895,10.16058342,2419.8,2419.7,0.00620347]
[1749170160091,0.82636,2419.1,2419.0,1.4189]
[1749170160291,0.82637,2419.1,2418.9,7.8061]
[1749170160592,0.82632,2419.3,2419.0,0.8264]
[1749170160795,0.82632,2419.3,2419.0,2.2466]
[1749170161190,0.82634,2419.2,2419.0,1.4202]
[1749170161382,0.8263,2419.3,2419.0,2.2466]
[1749170161589,0.00620347,2419.4,2418.9,7.81330347]
[1749170161898,0.8264,2419.0,2418.9,6.41720347]
[1749170162089,0.8264,2419.0,2418.9,0.00620347]
[1749170162791,0.82636,2419.2,2418.9,0.83262347]
[1749170162996,0.00620347,2419.4,2419.0,2.2471]
[1749170163388,0.8263,2419.3,2419.0,2.2471]
[1749170163589,0.82633,2419.2,2419.0,2.2471]
[1749170163789,0.00620347,2419.4,2419.0,1.4207]
[1749170163989,0.82632,2419.3,2419.0,2.2471]
[1749170164190,0.00620347,2419.4,2419.0,1.4207]
[1749170164496,0.82635,2419.2,2419.0,2.24709]
[1749170164690,3.2078,2419.2,2418.9,6.41720347]
[1749170164890,0.8264,2419.0,2418.9,0.00620347]
[1749170165497,0.82631,2419.3,2418.9,0.00620347]
[1749170165700,0.82631,2419.3,2419.0,0.8264]
[1749170165895,0.82631,2419.3,2419.1,1.309]
[1749170166090,0.00620347,2419.4,2419.3,0.8263]
[1749170166287,0.07753698,2419.4,2419.3,0.8263]
[1749170166492,0.07753698,2419.4,2419.3,4.0341]
[1749170166689,0.07753698,2419.4,2419.3,6.7937]
[1749170166992,4.03383,2420.1,2419.3,10.9674]
[1749170167193,0.82606,2420.0,2419.7,0.82613]
[1749170167388,3.2078,2420.1,2419.8,1.3911]
[1749170167693,3.2078,2420.1,2419.3,4.6584]
[1749170167694,0.82626,2419.4,2419.3,1.4506]
[1749170167890,3.2078,2419.7,2419.3,1.4506]
[1749170168088,3.2078,2419.7,2419.5,0.82621]
[1749170168291,3.2078,2419.7,2419.3,1.4506]
[1749170168292,3.2078,2420.1,2419.6,1.3911]
[1749170168497,3.4615,2420.2,2419.3,1.4506]
[1749170168498,0.82626,2419.4,2419.3,1.4506]
[1749170168699,0.82633,2419.2,2419.1,9.5818]
[1749170168895,3.2078,2419.5,2419.1,9.5818]
[1749170169193,1.337,2419.7,2419.2,1.3911]
[1749170169397,0.07133351,2419.4,2419.2,1.3911]
[1749170169897,0.07133351,2419.4,2419.3,0.8263]
[1749170170101,0.07133351,2419.4,2419.2,2.7347]
[1749170170401,0.07133351,2419.4,2419.3,2.2653]
[1749170173000,3.2078,2420.4,2420.1,0.82602]
[1749170173206,3.2078,2420.4,2420.2,1.439]
[1749170173904,3.2078,2420.9,2420.2,11.0208]
[1749170174102,3.2078,2420.9,2420.3,2.83050347]
[1749170174298,3.2078,2420.9,2420.4,1.3887]
[1749170174597,1.3689,2421.2,2420.6,3.2078]
[1749170174904,1.3689,2421.2,2420.7,7.7627]
[1749170175093,2.19457,2421.2,2420.8,1.3887]
[1749170175399,1.3689,2421.2,2420.8,1.3887]
[1749170175705,1.3689,2421.2,2420.9,0.82574]
[1749170176291,1.3689,2421.2,2420.8,1.3887]
[1749170176501,1.3689,2421.2,2420.9,0.82573]
[1749170177398,1.3689,2421.2,2421.0,0.82572]
[1749170177799,3.2078,2421.3,2421.1,0.82566]
[1749170177998,3.2078,2421.3,2421.2,1.4348]
[1749170178200,3.2078,2421.3,2421.2,2.26045]
[1749170179505,3.27913351,2421.3,2421.2,2.26045]
[1749170181105,0.07133351,2421.3,2421.2,2.26045]
[1749170182009,0.89694351,2421.3,2421.2,1.4348]